{"text_format":"1","workbook":"xlsx","n_sheets":7,"sheets":["Trame_PDCA","PDCA","Processus de suivi","Analyse de risque N-1","Analyse de risque","Instructions","Feuil1"],"not_rendered":{"charts":3,"images":10,"macros":1,"external_links":4,"defined_names":12,"comments":1,"pivot_tables":0},"unopened":[],"bounds":{"document_bytes":16777216,"sheet_cells":100000,"rows_first":2000,"rows_last":500,"rows_between":2000,"halvings":0,"cell_chars":16384,"cell_head_chars":4096},"cells_cut":0,"cells_raw":0,"read":"whole","date_system":"1900"}

{"sheet":"Trame_PDCA","index":0,"n_rows":6,"n_cols":17,"rows_kept":6,"cut":false,"hidden":true,"merged":[[0,16,3,16],[1,11,1,12],[1,13,1,15],[2,7,3,10],[2,11,3,15],[0,7,1,10],[0,11,0,12],[0,13,0,15]]}
[null,null,null,null,null,null,null,"PDCA",null,null,null,"Interlocuteur :",null,null,null,null,"AC41_C"]
[null,null,null,null,null,null,null,null,null,null,null,"Dernière Mise à jour :",null,"2019-05-13"]
[null,null,null,null,null,null,null,"SOURIAU"]
[]
[]
[null,null,null,null,null,null,{"$f":"COUNTIF(B8:B1000,\"En cours\")","v":0}]

{"sheet":"PDCA","index":1,"n_rows":7,"n_cols":17,"rows_kept":7,"cut":false,"hidden":false,"merged":[[0,16,3,16],[1,11,1,12],[1,13,1,15],[2,7,3,10],[2,11,3,15],[0,7,1,10],[0,11,0,12],[0,13,0,15]]}
[null,null,null,null,null,null,null,"PDCA",null,null,null,"Interlocuteur :",null,null,null,null,"AC41_C"]
[null,null,null,null,null,null,null,null,null,null,null,"Dernière Mise à jour :",null,"2019-05-14"]
[null,null,null,null,null,null,null,"Fournisseur"]
[]
[]
[]
["N° action","Etat","Thème","Sous Thème\n(ne rien remplir)","diffusion externe / interne","Source","ref article","Point sensible / Description","Action","Priorité","Pilote","Responsable ","date d'ouverture","Date objective Initiale","Date report","Date de fin","Commentaires"]

{"sheet":"Processus de suivi","index":2,"n_rows":20,"n_cols":26,"rows_kept":20,"cut":false,"hidden":false,"merged":[[11,8,11,25],[17,1,17,6],[18,1,18,6],[19,1,19,6],[8,0,9,6],[10,0,10,6],[11,0,11,6],[14,0,14,6],[15,0,15,6],[16,1,16,6],[5,0,5,4],[5,5,5,6],[6,0,6,4],[6,5,6,6],[7,0,7,4],[7,5,7,6],[4,9,4,25],[0,0,0,1],[0,2,0,3],[0,4,0,5],[0,9,0,25],[1,0,4,1],[1,2,2,5],[3,2,4,5],[1,6,4,6]]}
["Niveau escalade",null,{"$f":"IF(C4=\"fournisseur\",\"0\",VLOOKUP(C4,[4]Résumé!$1:$1048576,9,FALSE))","v":"0"},null,"Statut",null,"Date",null,null,"note Mois actif pour les courbes de tendances"]
[null,null,"PROCESS DE SUIVI",null,null,null,"AC49_B",null,"objectif","Mois","2018-09-01","2018-10-01","2018-11-01","2018-12-01","2019-01-01","2019-02-01","2019-03-01","2019-04-01","2019-05-01","2019-06-01","2019-07-01","2019-08-01","2019-09-01","2019-10-01","2019-11-01","2019-12-01"]
[null,null,null,null,null,null,null,{"$f":"HLOOKUP(G1,K6:Z10,2,FALSE)","v":{"$error":"#N/A"}},0.95,"OTD"]
[null,null,{"$f":"PDCA!H3","v":"Fournisseur"},null,null,null,null,{"$f":"HLOOKUP(G1,K6:Z10,3,FALSE)","v":{"$error":"#N/A"}},0.95,"OQD"]
[null,null,null,null,null,null,null,{"$f":"HLOOKUP(G1,K6:Z10,4,FALSE)","v":{"$error":"#N/A"}},null,"note 3 Mois Glissant pour le calcul Note Globale"]
["Date dernier envoi du PDCA :",null,null,null,null,null,null,{"$f":"IF(HLOOKUP(G1,K6:Z10,5,FALSE)=\"\",0,HLOOKUP(G1,K6:Z10,5,FALSE))","v":{"$error":"#N/A"}},null,"Mois","2018-09-01","2018-10-01","2018-11-01","2018-12-01","2019-01-01","2019-02-01","2019-03-01","2019-04-01","2019-05-01","2019-06-01","2019-07-01","2019-08-01","2019-09-01","2019-10-01","2019-11-01","2019-12-01"]
["Date dernière revue mensuelle :",null,null,null,null,null,null,0,0.95,"OTD"]
["Date dernière revue trimestrielle :",null,null,null,null,null,null,null,0.95,"OQD"]
["1> Image de la performance fournisseur",null,null,null,null,null,null,null,0.9,"Analyse de risque AC48",null,{"$f":"K9","v":0},{"$f":"L9","v":0},null,null,{"$f":"O9","v":0},{"$f":"O9","v":0},null,{"$f":"R9","v":0},{"$f":"R9","v":0},null,{"$f":"U9","v":0},{"$f":"U9","v":0},null,{"$f":"X9","v":0},{"$f":"X9","v":0}]
[null,null,null,null,null,null,null,null,{"$f":"AVERAGE(I7:I9)","v":0.93333333333333324},"Note Globale",{"$f":"IF(K7=\"\",\"\",((K7+K8+K9)/3))","v":""},"","","","","","","","","","","","","","",""]
[null,null,null,null,null,null,null,null,"Objectif Note Globale"]
["2> Suivi évolution performance "]
[]
[]
[]
["3> Objectifs"]
["KPI","objectifs attendus"]
["OTD"]
["OQD"]
["Analyse de risque AC48"]

{"sheet":"Analyse de risque N-1","index":3,"n_rows":0,"n_cols":0,"rows_kept":0,"cut":false,"hidden":true,"merged":[]}

{"sheet":"Analyse de risque","index":4,"n_rows":3,"n_cols":2,"rows_kept":3,"cut":false,"hidden":false,"merged":[[2,1,2,9]]}
[]
["Mettre le lien de l'analyse de risque de votre fournisseur , il est important de garder visible l'analyse précédente afin de voir l'évolution"]
["lien trame","file:///T:\\Direction_Achats\\Service_Qualite_Fournisseurs\\1_Suivi%20Four\\PDCA\\PDCA%20Trame\\Copie%20de%20AC48.xlsx"]

{"sheet":"Instructions","index":5,"n_rows":36,"n_cols":17,"rows_kept":36,"cut":false,"hidden":false,"merged":[[0,0,0,16],[1,0,4,6],[1,7,2,10],[1,11,1,12],[1,13,1,15],[1,16,4,16],[2,11,2,12],[2,13,2,15],[3,7,4,10],[3,11,4,15]]}
["Se référer au Mode d'utilisation MO-AC-024"]
[null,null,null,null,null,null,null,"PDCA",null,null,null,"Interlocuteur :",null,null,null,null,"AC41_C"]
[null,null,null,null,null,null,null,null,null,null,null,"Dernière Mise à jour :"]
[]
[]
[]
[]
[]
[]
[]
[]
[]
[]
[]
[]
[]
[]
[]
[]
[]
[]
[]
[]
[]
[]
["N° action","Etat","Thème","Sous Thème ","diffusion externe / interne","Source","Ref article","Point sensible / Description","Action","Priorité","Pilote","Responsable ","date d'ouverture","Date objective Initiale","Date report","Date de fin","Commentaires"]
[null,"Création","Qualité-aspect"]
[null,"En cours ","Qualité-dimensionnel"]
[null,"Terminée","Qualité-fonctionnel"]
[null,"En attente","Qualité-identification (ref, DC...)"]
[null,"Annulée","Qualité-conditionnement"]
[null,null,"Qualité-référentiel (norme, certificat...)"]
[null,null,"Logistique"]
[null,null,"Service"]
[null,null,"Système"]
[null,null,"Autres risques"]

{"sheet":"Feuil1","index":6,"n_rows":459,"n_cols":6,"rows_kept":459,"cut":false,"hidden":true,"merged":[]}
["Thème",null,"Fournisseur",null,"Statut","Date"]
["Aspect/Aspect",null,"A.B.E.",null,"Premium","2019-01-01"]
["Aspect/Défaut de SnPB électro",null,"A.R. ELECTRONIQUE SAS",null,"Preferred","2019-02-01"]
["Aspect/Défaut étain chimique",null,"AB CHIMIE SARL",null,"Imposed","2019-03-01"]
["Aspect/Défaut HAL",null,"ABB FRANCE - DIVISION PRODUITS AUTOMATION",null,"Non strategic","2019-04-01"]
["Aspect/Défaut matière (délaminage)",null,"ACAL BFI BELGIUM SA",null,null,"2019-05-01"]
["Aspect/Défaut matière (measling)",null,"ACAL BFI FRANCE",null,null,"2019-06-01"]
["Aspect/Défaut NiAu",null,"ACB NV",null,null,"2019-07-01"]
["Aspect/Défaut OSP",null,"ACCELONIX",null,null,"2019-08-01"]
["Aspect/Détourage",null,"Accessoires Emballage Aquitaine (A.E.A)",null,null,"2019-10-01"]
["Aspect/Drain",null,"ACOS SAS",null,null,"2019-11-01"]
["Aspect/Fraisage",null,"ADHETEC",null,null,"2019-12-01"]
["Aspect/Gravure couche externe",null,"ADHIS",null,null,"2020-01-01"]
["Aspect/Gravure couche interne",null,"AEDS BD FIXATIONS",null,null,"2020-02-01"]
["Aspect/Manipulation opérateur",null,"AEREM",null,null,"2020-03-01"]
["Aspect/Métallisation",null,"AFER",null,null,"2020-04-01"]
["Aspect/Oxydation couches internes",null,"AGB MECANIQUE DE PRECISION",null,null,"2020-05-01"]
["Aspect/Perçage",null,"AGBI",null,null,"2020-06-01"]
["Aspect/Sérigraphie",null,"AIRBORN INTERCONNECT",null,null,"2020-07-01"]
["Aspect/Vernis épargne",null,"AITS-SATIP",null,null,"2020-08-01"]
["Caractéristiques non conformes",null,"ALCOM ELECTRONICS",null,null,"2020-10-01"]
["Conditionnement/Conditionnement",null,"ALCYON",null,null,"2020-11-01"]
["Conditionnement/Mauvais callage de circuits",null,"ALPHA ELECTRONICS DISTRIBUTION SARL",null,null,"2020-12-01"]
["Conditionnement/Non respect AC15",null,"ALSENAM",null,null,"2021-01-01"]
["Conditionnement/Pièces non immobilisées",null,"ALSTOM TRANSPORT VILLEURBANNE",null,null,"2021-02-01"]
["Document/Déclaration de conformité",null,"AMIET - LPR",null,null,"2021-03-01"]
["Document/Document",null,"AMPHENOL AIR-LB SAS",null,null,"2021-04-01"]
["Document/FAI manquante",null,"AMPHENOL INFOCOM EUROPE",null,null,"2021-05-01"]
["Document/Manque plan",null,"AMPHENOL INVOTEC LTD",null,null,"2021-06-01"]
["Document/Non respect AC15",null,"AMPHENOL SOCAPEX",null,null,"2021-07-01"]
["Incomplet-Quantité/Incomplet-Quantité",null,"ANGST+PFISTER SA",null,null,"2021-08-01"]
["Incomplet-Quantité/Kit incomplet",null,"ANIXTER",null,null,"2021-10-01"]
["Incomplet-Quantité/Manque coupe métalo",null,"ANODIGRAV",null,null,"2021-11-01"]
["Incomplet-Quantité/Quantité",null,"ANTELEC",null,null,"2021-12-01"]
["Logistique",null,"ANTYCIP-CONVERGIE",null,null,"2022-01-01"]
["Logistique/Annulation ligne",null,"AP - LITHOS",null,null,"2022-02-01"]
["Logistique/Livraison en double",null,"ARCEL",null,null,"2022-03-01"]
["Marquage/Indice non-conforme",null,"ARMOA AERONAUTIQUE",null,null,"2022-04-01"]
["Marquage/Marquage",null,"ARROW ELECTRONICS",null,null,"2022-05-01"]
["Marquage/Référence non-conforme",null,"ASELEC TECHNOLOGIES",null,null,"2022-06-01"]
["Marquage/Sérigraphie",null,"ASKOL CLAMAGIRAND ETS (anciens)",null,null,"2022-07-01"]
["Mesure/Contamination ionique",null,"ASM ASSEMBLY SYSTEMS GMBH",null,null,"2022-08-01"]
["Mesure/Détourage",null,"ASTF",null,null,"2022-10-01"]
["Mesure/Epaisseur",null,"ASTIC INJECTION INDUST.",null,null,"2022-11-01"]
["Mesure/Epaisseur de cuivre",null,"ASTON TECHNOLOGIES",null,null,"2022-12-01"]
["Mesure/Epaisseur de HAL",null,"AT&S"]
["Mesure/Epaisseur de NiAu",null,"ATAB"]
["Mesure/Epaisseur de SnPB électro",null,"ATE DISTRIBUTION"]
["Mesure/Epaisseur d'étain chimique",null,"ATHERMAP"]
["Mesure/Mesure",null,"ATI-INTERCO"]
["Mesure/Opération manuelle",null,"ATLANTEC"]
["Mesure/Perçage",null,"ATOS"]
["Mesure/Planéité",null,"AVNET ABACUS"]
["Mesure/Tenue du vernis épargne",null,"AVNET SILICA"]
["Référence/Indice non-conforme",null,"AVNET USI"]
["Référence/Référence",null,"AXON CABLE"]
["Référence/Référence",null,"AXON MECHATRONICS"]
["Référence/Référence non-conforme",null,"AXSON FRANCE SAS"]
["Référence/ROHS",null,"AXSON TECHNOLOGIES"]
["Référence/Sérigraphie",null,"AXXEA SYSTEMS"]
["Service",null,"BARRE  SA"]
["Traçabilité/Broker",null,"BASTIDE TECHNOLOGIES"]
["Traçabilité/Date > 2 ans",null,"BCF MKM"]
["Traçabilité/Date code",null,"BERIEAU ETS"]
["Traçabilité/Ecart Date Code",null,"BERNIER"]
["Traçabilité/Fournisseur non qualifié",null,"BETA TRANSFORMER TECHNOLOGY"]
["Traçabilité/Manquante sur BL",null,"BM Energie"]
["Traçabilité/Manquante sur pièce",null,"BONY ETS"]
["Autres",null,"BOONE EXTEND SAS"]
[null,null,"BOSSARD SAS"]
[null,null,"BOUY J.C. S.A.S."]
[null,null,"BREE"]
[null,null,"BREE ENGINEERING"]
[null,null,"BRIONNE INDUSTRIE"]
[null,null,"BT ELECTRONICS"]
[null,null,"BUREAU SUD LOIRE"]
[null,null,"C.E.F (Comptoir Electrique Français)"]
[null,null,"C.I.M. (Chaudronnerie Industrielle du Midi)"]
[null,null,"CALDIC"]
[null,null,"CALEO"]
[null,null,"CAMEGA TOLERIE"]
[null,null,"CASSIDIAN TEST & SERVICES"]
[null,null,"CATS USD"]
[null,null,"CCA"]
[null,null,"CEL (Electronique & Telecom)"]
[null,null,"CERAMTEC"]
[null,null,"CGE Distribution"]
[null,null,"CGR - LPI"]
[null,null,"CI ELECTRONICS"]
[null,null,"CIBEL"]
[null,null,"CIEL Electronique"]
[null,null,"CIMULEC"]
[null,null,"CIREA"]
[null,null,"CIRETEC"]
[null,null,"CLI Distribution"]
[null,null,"CLO ELECTRONIQUE"]
[null,null,"C-MAC ELECTROMAG"]
[null,null,"COBHAM CHELTON TELECOM MICROWAVE"]
[null,null,"COBHAM DES"]
[null,null,"COILCRAFT"]
[null,null,"COMMECA"]
[null,null,"COMPELMA"]
[null,null,"COMPTOIR GL DES COMPTEURS"]
[null,null,"CONDI ATLANTIQUE"]
[null,null,"CONESYS EUROPE SAS"]
[null,null,"CONVERGE"]
[null,null,"CONVERGY"]
[null,null,"COULOT DECOLLETAGE"]
[null,null,"CPP EUROPE - USINE MICROCAST"]
[null,null,"CRANE INTERPOINT"]
[null,null,"CSI DU SUD OUEST"]
[null,null,"CTM LASER"]
[null,null,"DAHER LHOTELLIER CSI"]
[null,null,"DASSAULT AVIATION"]
[null,null,"DATA DEVICE CORPORATION"]
[null,null,"DAT-SATIP"]
[null,null,"DB PRODUCTS"]
[null,null,"DCT ENGINEERING"]
[null,null,"DDC"]
[null,null,"DDI North Jackson Corp"]
[null,null,"DEDIENNE SAS"]
[null,null,"DELTECH"]
[null,null,"DEUTSCH"]
[null,null,"DICEP EMC (DELTRON)"]
[null,null,"DIGI-KEY ELECTRONICS GERMANY GMBH"]
[null,null,"DIL"]
[null,null,"DIOTEC FRANCE"]
[null,null,"DIRECT"]
[null,null,"DOMISYS MATERIEL NET"]
[null,null,"DRI RELAYS INC"]
[null,null,"DYTRAN INSTRUMENTS"]
[null,null,"E.B.A."]
[null,null,"EADS TEST & SERVICES"]
[null,null,"EASII IC /X-REL"]
[null,null,"EBV ELEKTRONIK"]
[null,null,"ECE - ZODIAC AEROSPACE"]
[null,null,"ECEI SARL"]
[null,null,"ECOMAL France SAS"]
[null,null,"ELDRE SAS"]
[null,null,"ELEC ATLANTIQUE"]
[null,null,"ELEXIS"]
[null,null,"ELIPSE TECHNOLOGIE"]
[null,null,"ELLSWORTH ADHESIVES France"]
[null,null,"ELMITECH"]
[null,null,"ELTRONICS/NORCATEC LCC"]
[null,null,"ELVIA PRINTED CIRCUIT BOARDS"]
[null,null,"ENSINGER MACHINING"]
[null,null,"EPCI"]
[null,null,"EPOTECNY"]
[null,null,"EPOXIES ETC."]
[null,null,"EQUIPEMENTS SCIENTIFIQUES"]
[null,null,"ERCE SA"]
[null,null,"ERNI ELECTRONICS GMBH"]
[null,null,"ESTERLINE AUXITROL S.A"]
[null,null,"ESTERLINE LEACH INTERNATIONAL"]
[null,null,"ETS BERIEAU"]
[null,null,"EURO TECHNOLOGIES SRL"]
[null,null,"EUROCOMPOSANT"]
[null,null,"EUROMIP"]
[null,null,"EUROPLACER INDUSTRIES"]
[null,null,"EUROPRECIS"]
[null,null,"EXAFLEX"]
[null,null,"EXTRATOLE SAS"]
[null,null,"EXXELIA SAS ANTIGNY"]
[null,null,"EXXELIA SAS ILLANGE"]
[null,null,"EXXELIA SAS PARIS"]
[null,null,"EXXELIA SAS PESSAC"]
[null,null,"EXXELIA SAS ST NAZAIRE"]
[null,null,"FARNELL"]
[null,null,"FDI"]
[null,null,"FIMOR BICEL-TECHNOWORLD"]
[null,null,"FIRST ELECTRONICS"]
[null,null,"FLEXICO-Minigrip"]
[null,null,"FONDEX"]
[null,null,"FOURNISSEUR DIVERS"]
[null,null,"FRANK & SCHULTE"]
[null,null,"FREGATE AERO"]
[null,null,"FREQUENCY MANAGEMENT INTERNATIONAL"]
[null,null,"FTM TECHNOLOGIES"]
[null,null,"FUTURE ELECTRONICS SAS"]
[null,null,"GAIA"]
[null,null,"GAUTHIER CONNECTIQUE"]
[null,null,"GCA HOUDAN"]
[null,null,"GEATER MACHINING AND MANUFACTURING"]
[null,null,"GEKKO TAPE"]
[null,null,"GENERAL HYBRID"]
[null,null,"GEORGET PRODUCTION"]
[null,null,"GEORGET SARL"]
[null,null,"GETELEC SA"]
[null,null,"GIRARD MASSONNET"]
[null,null,"GIRAU-GUYARD"]
[null,null,"GLENAIR"]
[null,null,"GMP-ATIM TECHNOLOGIES SAS"]
[null,null,"GRAVIC FRANCE"]
[null,null,"GREENE TWEED"]
[null,null,"GROSSERON"]
[null,null,"GUILMAN - AUBERT"]
[null,null,"H.C.M"]
[null,null,"HABIA CABLE"]
[null,null,"HALE INSTRUMENTS LTD"]
[null,null,"HENKEL ELECTRONIC MATERIALS BELGIUM NV"]
[null,null,"HIREX ENGINEERING"]
[null,null,"HISCO"]
[null,null,"HITALTECH SA"]
[null,null,"HOLT INC"]
[null,null,"HONEYWELL"]
[null,null,"HOUSTON TRANSFORMER"]
[null,null,"HUMISEAL EUROPE SARL"]
[null,null,"HYPERTAC SAINT AUBIN LES ELBEUF"]
[null,null,"I.S.A. ELECTRONIQUE"]
[null,null,"I.S.C. DISTREL"]
[null,null,"ICELEC"]
[null,null,"ICM INDUSTRIE NIORT"]
[null,null,"ICM INDUSTRIE PARIS"]
[null,null,"ID MOS"]
[null,null,"ID MOS - GROUPE SERMA"]
[null,null,"IDEALEC"]
[null,null,"IEC Electronique"]
[null,null,"IMASONIC SAS"]
[null,null,"IMCD France SAS (S.P.C.I)"]
[null,null,"IMPERATOR"]
[null,null,"IMPRESSIONS CINATO"]
[null,null,"INOV' TOLERIE"]
[null,null,"INTEGRA TECHNOLOGIES LLC"]
[null,null,"INTERCOMP INC."]
[null,null,"INTERCONNEXIONS SA"]
[null,null,"INVENTEC PERFOMANCE CHEMICALS"]
[null,null,"ISATIS - FLUOCHIMIE"]
[null,null,"ISC DISTREL"]
[null,null,"ISOTOPE ELECTRONICS"]
[null,null,"ITC ELASTOMERES"]
[null,null,"ITP"]
[null,null,"JACQUES DUBOIS"]
[null,null,"JAUCH QUARTZ"]
[null,null,"JBG METAFIX"]
[null,null,"JIB"]
[null,null,"JMD Etiquettes"]
[null,null,"KEMLON"]
[null,null,"KEMTRON"]
[null,null,"KEP METAL TECH COLLOT Technologies"]
[null,null,"KEP TECHNOLOGIES INTEGRATED SYSTEMS"]
[null,null,"KOMAX"]
[null,null,"KVG QUARTZ CRYSTAL"]
[null,null,"LA SOIE-NEYME SA"]
[null,null,"LE JOINT FRANCAIS"]
[null,null,"LE PROTOTYPE INDUSTRIEL"]
[null,null,"LEACH SARRALBE"]
[null,null,"LECLERC"]
[null,null,"LEM INTERNATIONAL SA"]
[null,null,"LEMAN-INDUSTRIE"]
[null,null,"LEMO FRANCE"]
[null,null,"LFP"]
[null,null,"LINTECH"]
[null,null,"LNA Prototypes"]
[null,null,"LOGITRADE SAS"]
[null,null,"LOUPOT"]
[null,null,"M.P.M. (Moulages Plastiques du Midi)"]
[null,null,"MAC PANEL LTD"]
[null,null,"MAGNETIC WINDINGS COMPANY"]
[null,null,"MAISON DE LA PRESSE"]
[null,null,"MALOUVIS DECOLLETAGE"]
[null,null,"MANUDAX"]
[null,null,"MANUDAX FRANCE"]
[null,null,"MANUDEM"]
[null,null,"MANUTAN"]
[null,null,"MASTER CRYSTAL"]
[null,null,"MATEL"]
[null,null,"MATLOG"]
[null,null,"MATRA ELECTRONIQUE"]
[null,null,"MB TECH"]
[null,null,"MDP"]
[null,null,"MEASUREMENT SPECIALTIES"]
[null,null,"MECABRIVE INDUSTRIES SAS"]
[null,null,"MECACHIMIQUE"]
[null,null,"MECAMESURES TECHNOLOGIES"]
[null,null,"MECANIQUE DE PRECISION"]
[null,null,"MECATRACTION"]
[null,null,"MEDER ELECTRONIC SARL"]
[null,null,"MERSEN FRANCE ANGERS SAS"]
[null,null,"MERSEN FRANCE LA MURE SAS"]
[null,null,"METAUX BLANC OUVRES"]
[null,null,"METRONELEC"]
[null,null,"MG Communications"]
[null,null,"MICROPAC INDUSTRIES"]
[null,null,"MIKROMA SAS"]
[null,null,"MILEXIA FRANCE SAS"]
[null,null,"MILTON ROSS COMPOSANTS"]
[null,null,"MINCO SA"]
[null,null,"MJB"]
[null,null,"MOTEX"]
[null,null,"MOTTIER DECOLLETAGE"]
[null,null,"MOUSER ELECTRONICS INC"]
[null,null,"MPC"]
[null,null,"MS RELAIS"]
[null,null,"MULTIPARTS INC."]
[null,null,"NCAB GROUP FRANCE SAS"]
[null,null,"NEC ENGINEERING"]
[null,null,"NEW YORKER ELECTRONICS"]
[null,null,"NICOMATIC"]
[null,null,"NOMADVANCE"]
[null,null,"O.M.P."]
[null,null,"OCCITANIE PLASTIQUES"]
[null,null,"OCETA"]
[null,null,"OK INTERNATIONAL"]
[null,null,"OPTIMUM"]
[null,null,"OSHINO Lamps"]
[null,null,"OXYGRAVURE"]
[null,null,"P2M (Trappes)"]
[null,null,"PANASONIC ELECTRIC WORKS FRANCE"]
[null,null,"PARALLAX"]
[null,null,"PARKER HANNIFIN LTD"]
[null,null,"PARTMINER WORLDWIDE INC."]
[null,null,"PENTAIR TECHNICAL SOLUTIONS SAS"]
[null,null,"PETERCEM"]
[null,null,"PEZET PIERRE"]
[null,null,"PHIMESURE"]
[null,null,"PHOENIX PEREGRINE"]
[null,null,"PIKES PEAK TEST LABS INC"]
[null,null,"PIT"]
[null,null,"PN ELECTRONICS"]
[null,null,"POLY DISPENSING SYSTEMS"]
[null,null,"POSITRONIC"]
[null,null,"PRECIFIL"]
[null,null,"PRECITOLE"]
[null,null,"PRESIDIO Components Inc"]
[null,null,"PRESIDIO COMPONENTS INC (WCI)"]
[null,null,"PROFITEC"]
[null,null,"PROJECT"]
[null,null,"PROTEAUX SA"]
[null,null,"PROTECNO"]
[null,null,"PULSE"]
[null,null,"PYRECAP"]
[null,null,"QUARON"]
[null,null,"R.A.H INDEL SAS"]
[null,null,"RADIALL"]
[null,null,"RADIOSPARES"]
[null,null,"RAJA"]
[null,null,"RAKON FRANCE SAS"]
[null,null,"RAKON FRANCE SAS - PONT STE MARIE"]
[null,null,"RANDOLPH COMPANY"]
[null,null,"RBC FRANCE SAS"]
[null,null,"REBLING PLASTICS- ROCAL CORPORATION"]
[null,null,"REBOUND ELECTRONICS (UK) Ltd"]
[null,null,"REL"]
[null,null,"REXEL-REVIMEX"]
[null,null,"RI2 Electronique"]
[null,null,"RICHARDSON ELECTRONICS"]
[null,null,"RICHARDSON RFPD USD"]
[null,null,"RINAMAROC"]
[null,null,"RINAMECA SN"]
[null,null,"ROCKWELL COLLINS"]
[null,null,"RUTRONIK SAS"]
[null,null,"S.F.M."]
[null,null,"S.T.P.I."]
[null,null,"S.T.T."]
[null,null,"S/K INDUSTRIES INC."]
[null,null,"SAMTEC FRANCE LLC"]
[null,null,"SANMINA CORPORATION"]
[null,null,"SATINOX ASSEMBLAGE"]
[null,null,"SBEA TECHNOLOGIES"]
[null,null,"SCAMTECH"]
[null,null,"SCHLIGLER SAS"]
[null,null,"SCHROFF SAS"]
[null,null,"SDEP ACE"]
[null,null,"SEALANTS EUROPE SAS"]
[null,null,"SEALS & PACKINGS"]
[null,null,"SECRE COMPOSANTS ELECTRONIQUES"]
[null,null,"SEDER GROUPE"]
[null,null,"SEDI Fibres Optiques"]
[null,null,"SEEM / SEMRAC SN"]
[null,null,"SEEMI ISOLANTS"]
[null,null,"SELECTRONIC"]
[null,null,"SEPRO ROBOTIQUE"]
[null,null,"SERDI"]
[null,null,"SERIG"]
[null,null,"SERMA PESSAC"]
[null,null,"SERMA TECHNOLOGIES PESSAC"]
[null,null,"SERMOP SARL"]
[null,null,"SERTIP"]
[null,null,"SGCI"]
[null,null,"SHENNAN CIRCUITS CO LTD"]
[null,null,"SICOVEND AG"]
[null,null,"SILFOX"]
[null,null,"SIPMA"]
[null,null,"SJM EUROSTAT SA"]
[null,null,"SLTS"]
[null,null,"SMIDE"]
[null,null,"SMITH AND ASSOCIATES EUROPE"]
[null,null,"SMP - SEGRE MECANIQUE PRECISION"]
[null,null,"SMPT"]
[null,null,"SND"]
[null,null,"SNIC"]
[null,null,"SOCIETE NOUVELLE SERITECH"]
[null,null,"SODIMATEL-FASTENERS EUR"]
[null,null,"SODISTREL"]
[null,null,"SOFICOR MADER - DIV. BOLLORE - JIVAL"]
[null,null,"SOFRAMME"]
[null,null,"SOMACIS PCB INDUSTRIES"]
[null,null,"SOPHYC - SOCOLAB"]
[null,null,"SORELEC"]
[null,null,"SOTIP SA"]
[null,null,"SOURIAU"]
[null,null,"SOVEFAM"]
[null,null,"SP2I"]
[null,null,"SPCI Société Prototypes Circuits Imprimés"]
[null,null,"SPECIALITY COATING SYSTEMS"]
[null,null,"SPECIALTY COATING SYSTEMS"]
[null,null,"SRT- MICROCERAMIQUE"]
[null,null,"SST SENSING LTD"]
[null,null,"STACEM"]
[null,null,"STE LEVRAT"]
[null,null,"STRICHER S.C.T."]
[null,null,"SYSCOM"]
[null,null,"SYSTRONIC"]
[null,null,"T.C.T."]
[null,null,"TARACELL FRANCE"]
[null,null,"TECH POWER ELECTRONICS SAS"]
[null,null,"TECHCI"]
[null,null,"TECHNI INDUSTRIE FRANCE"]
[null,null,"TECHNIPLAST"]
[null,null,"TECHNOPOINT"]
[null,null,"TEISSIER TECHNIQUE"]
[null,null,"TELEREX NV"]
[null,null,"TEMEX CERAMICS"]
[null,null,"TEXAS MICROELETRONICS CORPORATION"]
[null,null,"THE DALE COMPANY, INC"]
[null,null,"THE HARVA COMPANY INC"]
[null,null,"THERMSHIELD"]
[null,null,"THIERRY CIRCUITS IMPRIMES"]
[null,null,"TOLANJOU"]
[null,null,"TR ASSOCIATES"]
[null,null,"TRELEC"]
[null,null,"TRENDSETTER ELECTRONICS"]
[null,null,"TRIUMPOWER"]
[null,null,"TT electronics Europe Welwyn Components"]
[null,null,"TTI INC"]
[null,null,"TTM TECHNOLOGIES"]
[null,null,"TUBEXACT"]
[null,null,"UCN MECA"]
[null,null,"UNION TECHNOLOGY CORP."]
[null,null,"USI ELECTRONICS"]
[null,null,"USICAD"]
[null,null,"VANGUARD ELECTRONICS COMPANY"]
[null,null,"VEOLIA WATER STI"]
[null,null,"VISHAY AZTRONIC"]
[null,null,"VISHAY EUROPE SALES GMBH"]
[null,null,"VISHAY PRECISION FOIL GMBH"]
[null,null,"VISHAY PRECISION FOIL GMBH"]
[null,null,"VISHAY PRECISION FOIL GMBH USD"]
[null,null,"VISION ELECTRONIC"]
[null,null,"VP ELECTRONIQUE"]
[null,null,"VWR INTERNATIONAL"]
[null,null,"WCI"]
[null,null,"WILLIAMSON ELECTRONIQUE"]
[null,null,"WURTH ELECTRONICS"]
[null,null,"WURTH ELECTRONIK FRANCE"]
[null,null,"XP POWER"]
[null,null,"YELLOZ COMPONENTS"]
[null,null,"ZODIAC AERO ELECTRIC"]